bitfinex-derivatives/quotes_SOLF0:USTF0_20241227
["timestamp","ask_amount","ask_price","bid_price","bid_amount"]
[1735298330687,1.5253,190.99,190.94,8.43621112]
[1735298331192,1.5253,190.99,190.97,2.6216]
[1735298332387,1.5253,190.99,190.93,3.22]
[1735298332589,1.5253,190.99,190.96,2.6218]
[1735298333186,1.5253,190.99,190.94,3.22]
[1735298333685,1.5253,190.99,190.92,2.6224]
[1735298333885,1.5253,190.99,190.89,3.22]
[1735298334085,13.17929811,190.98,190.89,3.22]
[1735298334300,2.622,190.95,190.89,3.22]
[1735298334482,1.5272,190.94,190.85,16.39929811]
[1735298334788,2.6224,190.93,190.88,2.6229]
[1735298335090,3.1404,190.94,190.85,16.39929811]
[1735298335291,3.1404,190.94,190.85,3.22]
[1735298335493,2.6224,190.92,190.87,2.6231]
[1735298335687,1.5373,190.91,190.87,2.6231]
[1735298335891,1.5373,190.91,190.85,3.22]
[1735298336095,1.5373,190.91,190.82,67.67929811]
[1735298336292,1.5373,190.91,190.88,2.6229]
[1735298337090,1.5373,190.91,190.83,3.22]
[1735298337791,1.5373,190.91,190.87,2.6229]
[1735298337993,1.5373,190.91,190.84,3.22]
[1735298338394,1.5373,190.91,190.86,2.6231]
[1735298338595,1.5373,190.91,190.84,3.22]
[1735298339695,1.5373,190.91,190.85,13.17929811]
[1735298340091,1.5373,190.91,190.89,2.6228]
[1735298340495,1.5373,190.91,190.85,13.17929811]
[1735298341000,3.1404,190.94,190.85,13.17929811]
[1735298341497,3.1404,190.94,190.9,2.6226]
[1735298342289,1.5272,190.94,190.89,3.22]
[1735298343099,1.5272,190.94,190.89,5.8428]
[1735298344195,1.5272,190.94,190.9,2.6226]
[1735298345702,4.1493,190.94,190.89,3.22]
[1735298345899,1.5272,190.94,190.82,67.67929811]
[1735298346095,14.70649811,190.94,190.83,3.22]
[1735298346599,21.97049371,190.94,190.83,3.22]
[1735298346799,2.6225,190.91,190.83,3.22]
[1735298347391,2.6228,190.89,190.79,13.17929811]
[1735298347598,7.2639956,190.91,190.76,13.17929811]
[1735298347599,1.5915,190.88,190.76,13.17929811]
[1735298347797,16.37009811,190.88,190.8,2.624]
[1735298348095,2.6235,190.84,190.77,3.22]
[1735298348890,2.6233,190.86,190.8,2.624]
[1735298349094,4.2808,190.86,190.8,2.624]
[1735298349292,4.2808,190.86,190.77,3.22]
[1735298349497,1.6575,190.86,190.77,3.22]
[1735298349794,13.17929811,190.85,190.77,3.22]
[1735298350592,13.17929811,190.85,190.73,3.22]
[1735298350593,13.17929811,190.82,190.73,3.22]
[1735298350996,15.80309811,190.82,190.73,3.22]
[1735298351801,15.80309811,190.82,190.72,16.39929811]
[1735298352198,47.89277526,190.85,190.8,2.624]
[1735298352399,28.86997715,190.85,190.77,3.22]
[1735298352898,30.52747715,190.86,190.81,2.6238]
[1735298353704,1.6575,190.86,190.81,2.6238]
[1735298353898,4.2808,190.86,190.81,2.6238]
[1735298354097,1.6575,190.86,190.8,2.624]
[1735298354399,1.6575,190.86,190.76,3.22]
[1735298355804,4.2808,190.86,190.81,2.6238]
[1735298356105,1.6575,190.86,190.76,3.22]
[1735298357101,2.6233,190.85,190.81,2.6239]
[1735298357501,2.6233,190.85,190.76,3.22]
[1735298357997,2.6233,190.85,190.79,2.6241]
[1735298358603,1.6575,190.86,190.79,2.6241]
[1735298358807,13.17929811,190.83,190.77,2.6243]
[1735298359105,13.17929811,190.83,190.72,13.17929811]
[1735298359106,13.17929811,190.83,190.72,3.22]
[1735298359503,3.22,190.84,190.72,16.39929811]
[1735298359802,2.6235,190.85,190.76,2.6246]
[1735298360004,2.6235,190.85,190.72,16.39929811]
[1735298360506,2.6235,190.84,190.79,2.624]
[1735298360705,13.17929811,190.85,190.72,16.39929811]
[1735298361008,2.6238,190.82,190.75,2.6246]
[1735298361201,2.6238,190.82,190.72,16.39929811]
[1735298362007,2.6239,190.81,190.72,16.39929811]
[1735298363405,2.6239,190.81,190.75,2.6246]
[1735298364005,2.6239,190.81,190.72,16.39929811]
[1735298364201,2.6239,190.81,190.76,2.6246]
[1735298365507,2.6239,190.81,190.77,2.6244]
[1735298365708,2.6238,190.82,190.72,16.39929811]
[1735298366104,7.2639956,190.83,190.72,16.39929811]
[1735298366607,28.86997715,190.84,190.72,16.39929811]
[1735298367604,9.8874956,190.84,190.72,16.39929811]
[1735298367804,7.2639956,190.84,190.72,16.39929811]
[1735298368006,2.6238,190.82,190.76,2.6246]
[1735298369407,7.2639956,190.83,190.78,2.6243]
[1735298369809,31.49357715,190.84,190.78,2.6243]
[1735298370010,2.6237,190.83,190.78,2.6243]
[1735298370710,31.49367715,190.83,190.78,2.6243]
[1735298371308,28.86997715,190.83,190.77,2.6244]
[1735298371509,42.04927526,190.83,190.72,13.17929811]
[1735298371713,42.04927526,190.83,190.72,3.22]
[1735298371909,45.26927526,190.83,190.74,2.6248]
[1735298372108,8.45569742,190.78,190.74,2.6248]
[1735298373611,15.71969302,190.78,190.74,2.6248]
[1735298374116,7.2639956,190.78,190.74,2.6248]
[1735298374415,33.13927715,190.79,190.74,2.6248]
[1735298376315,7.2639956,190.77,190.74,2.6248]
[1735298376811,7.2639956,190.77,190.69,13.21105142]
[1735298377015,31.49447715,190.77,190.72,2.6251]
[1735298378116,28.86997715,190.77,190.72,2.6251]
[1735298378315,45.13298667,190.76,190.72,2.6251]
[1735298378817,42.50838667,190.76,190.72,2.6251]
[1735298379012,42.50838667,190.76,190.74,2.6247]
[1735298379216,42.50838667,190.76,190.69,16.43105142]
[1735298379217,7.2639956,190.75,190.69,16.43105142]
[1735298379712,4.7103956,190.75,190.74,2.6249]
[1735298379912,4.7103956,190.75,190.74,5.8449]
[1735298380316,4.7103956,190.77,190.76,2.6246]
[1735298381615,21.60598155,190.82,190.78,2.6242]
[1735298382518,21.60598155,190.81,190.78,2.6242]
[1735298383715,21.60598155,190.81,190.8,2.624]
[1735298385124,21.60598155,190.81,190.74,3.22]
[1735298386222,21.60598155,190.79,190.76,2.6244]
[1735298386423,21.60598155,190.79,190.74,3.22]
[1735298387619,21.60598155,190.79,190.78,2.6243]
[1735298387927,21.60598155,190.81,190.78,2.6243]
[1735298388913,21.60598155,190.81,190.74,2.6248]
[1735298389117,21.60598155,190.81,190.69,13.21105142]
[1735298389321,1.5322,190.8,190.7,3.22]
[1735298389719,4.1743,190.79,190.73,2.6249]
[1735298389920,25.78028155,190.79,190.73,2.6249]
[1735298390220,25.78028155,190.79,190.7,3.22]
[1735298390523,25.78028155,190.79,190.74,2.6247]
[1735298390524,23.15598155,190.79,190.74,2.6247]
[1735298391321,35.26956389,190.78,190.74,2.6247]
[1735298393926,21.60598155,190.77,190.74,2.6247]
[1735298394123,21.60598155,190.77,190.73,2.625]
[1735298394923,21.60598155,190.77,190.7,3.22]
[1735298394924,24.23048155,190.77,190.72,2.6251]
[1735298395115,21.60598155,190.76,190.72,2.6251]
[1735298395320,21.60598155,190.76,190.7,3.22]
[1735298395720,21.60598155,190.76,190.71,2.6252]
[1735298395920,21.60598155,190.76,190.7,3.22]
[1735298396129,21.60598155,190.77,190.72,8.45409517]
[1735298396826,21.60598155,190.77,190.7,3.22]
[1735298397027,21.60598155,190.77,190.7,11.67409517]
[1735298397926,21.60598155,190.76,190.7,11.67409517]
[1735298398526,21.60598155,190.76,190.72,2.625]
[1735298399226,21.60598155,190.75,190.72,2.625]
[1735298400022,21.60598155,190.75,190.73,2.625]
[1735298400324,21.60598155,190.75,190.72,8.45409517]
[1735298401128,21.60598155,190.77,190.74,2.6247]
[1735298401330,21.60598155,190.77,190.72,8.45409517]
[1735298401926,35.26956389,190.78,190.73,2.6249]
[1735298402730,21.60598155,190.77,190.73,2.6249]
[1735298403440,21.60598155,190.77,190.72,8.45409517]
[1735298403640,21.60598155,190.77,190.74,2.6249]
[1735298403841,35.26956389,190.78,190.74,2.6249]
[1735298405242,35.26956389,190.78,190.72,8.45409517]
[1735298405437,43.72365906,190.78,190.71,2.6251]
[1735298405636,8.45409517,190.74,190.65,67.14962276]
[1735298405835,8.45409517,190.72,190.66,3.22]
[1735298406141,11.07929517,190.72,190.67,2.6258]
[1735298406640,12.64519517,190.72,190.67,2.6258]
[1735298406840,12.64519517,190.72,190.66,2.6259]
[1735298407040,35.84807672,190.72,190.66,2.6259]
[1735298407232,2.6254,190.71,190.64,3.22]
[1735298407437,8.45409517,190.7,190.64,3.22]
[1735298407835,8.45409517,190.7,190.65,2.6261]
[1735298408036,11.07959517,190.7,190.63,8.45409517]
[1735298408238,11.07959517,190.7,190.49,26.74732803]
[1735298408239,8.45409517,190.68,190.61,2.6266]
[1735298408438,8.45409517,190.68,190.61,3.22]
[1735298408641,8.45409517,190.68,190.61,11.67409517]
[1735298408941,8.45409517,190.68,190.64,2.6262]
[1735298410943,8.45409517,190.68,190.65,2.6261]
[1735298411243,21.60598155,190.69,190.65,8.45409517]
[1735298411444,21.60598155,190.69,190.65,11.67409517]
[1735298411638,21.60598155,190.69,190.68,2.6257]
[1735298412242,11.61689517,190.72,190.65,11.67409517]
[1735298412442,11.61689517,190.72,190.69,2.6255]
[1735298412643,11.61689517,190.72,190.65,11.67409517]
[1735298414247,1.5659,190.72,190.67,8.45409517]
[1735298414442,1.5659,190.72,190.69,2.6255]
[1735298414638,1.5548,190.73,190.69,8.45409517]
[1735298415043,1.5548,190.73,190.7,3.22]
[1735298415242,30.06007672,190.76,190.73,2.625]
[1735298415642,8.45409517,190.76,190.73,2.625]
[1735298418141,23.22688155,190.77,190.71,8.45409517]
[1735298418347,23.22688155,190.77,190.73,8.45409517]
[1735298419049,1.6209,190.77,190.71,8.45409517]
[1735298420149,1.6209,190.77,190.72,2.625]
[1735298421754,1.6209,190.77,190.7,11.67409517]
[1735298421943,1.6209,190.77,190.73,2.625]
[1735298425749,8.45409517,190.76,190.72,2.6251]
[1735298425952,8.45409517,190.76,190.69,8.45409517]
[1735298426250,1.6209,190.77,190.61,67.16626809]
[1735298426251,8.45409517,190.74,190.67,11.07979517]
[1735298426455,8.45409517,190.72,190.65,8.45409517]
[1735298426657,8.45409517,190.68,190.61,70.38626809]
[1735298426962,8.45409517,190.66,190.6,2.6267]
[1735298428461,11.08009517,190.66,190.6,2.6267]
[1735298428662,8.45409517,190.66,190.61,2.6266]
[1735298429259,8.45409517,190.64,190.59,2.6268]
[1735298429656,8.45409517,190.66,190.58,3.22]
[1735298429856,8.45409517,190.66,190.59,8.45409517]
[1735298431056,1.5589,190.67,190.61,8.45409517]
[1735298431259,1.5589,190.67,190.63,8.45409517]
[1735298431460,1.5589,190.67,190.66,2.626]
[1735298431856,1.5589,190.67,190.48,5.2569]
[1735298432065,1.5589,190.67,190.62,8.45409517]
[1735298433665,10.10599517,190.7,190.59,3.22]
[1735298433666,10.10599517,190.7,190.64,8.45409517]
[1735298433860,1.6519,190.7,190.64,11.67409517]
[1735298434261,1.6519,190.7,190.64,3.22]
[1735298434463,1.6519,190.7,190.66,2.6258]
[1735298435270,1.6519,190.7,190.64,5.8462]
[1735298435866,1.6519,190.7,190.61,2.6266]
[1735298436077,1.6519,190.7,190.59,3.22]
[1735298436762,23.25788155,190.7,190.59,3.22]
[1735298436961,2.6258,190.67,190.62,2.6265]
[1735298437164,1.6298,190.66,190.62,2.6265]
[1735298437963,1.6298,190.66,190.63,2.6262]
[1735298438162,1.6298,190.66,190.59,3.22]
[1735298438573,1.6298,190.66,190.63,2.6263]
[1735298440674,1.6298,190.66,190.61,2.6265]
[1735298440876,1.6298,190.66,190.59,3.22]
[1735298441276,1.6298,190.66,190.55,13.22203623]
[1735298441468,2.6261,190.65,190.6,2.6267]
[1735298441869,13.22203623,190.65,190.52,3.22]
[1735298442879,2.6268,190.6,190.55,2.6274]
[1735298443168,13.22203623,190.58,190.37,58.9305359]
[1735298443373,2.6283,190.5,190.44,2.629]
[1735298443571,3.22,190.52,190.41,13.22203623]
[1735298443773,3.22,190.53,190.41,13.22203623]
[1735298443973,3.22,190.52,190.46,2.6286]
[1735298444170,3.22,190.52,190.37,5.20340943]
[1735298444474,13.22203623,190.51,190.39,13.22203623]
[1735298444971,6.4743,190.5,190.39,13.22203623]
[1735298445576,9.1025,190.5,190.41,2.6293]
[1735298445877,9.1025,190.5,190.39,13.22203623]
[1735298446280,6.4743,190.5,190.39,13.22203623]
[1735298446478,2.6283,190.49,190.42,2.6293]
[1735298447380,2.6283,190.49,190.43,2.6291]
[1735298447677,8.0082,190.5,190.37,5.20340943]
[1735298447877,8.0082,190.5,190.4,2.6294]
[1735298448077,8.0082,190.5,190.37,5.20340943]
[1735298448381,4.7882,190.5,190.37,5.20340943]
[1735298448583,4.7882,190.5,190.39,13.22203623]
[1735298449876,2.6283,190.49,190.39,13.22203623]
[1735298450277,4.7882,190.5,190.39,13.22203623]
[1735298450482,3.22,190.49,190.43,2.6291]
[1735298450782,3.22,190.49,190.39,13.22203623]
[1735298451481,13.22203623,190.49,190.37,3.56230943]
[1735298451680,3.22,190.48,190.41,2.6294]
[1735298452480,3.22,190.48,190.37,3.56230943]
[1735298452686,3.22,190.48,190.39,2.6296]
[1735298453082,3.22,190.48,190.37,3.56230943]
[1735298453275,2.6286,190.47,190.4,2.6295]
[1735298455284,2.6289,190.45,190.38,2.6297]
[1735298455587,13.22203623,190.46,190.38,2.6297]
[1735298455985,2.629,190.44,190.39,2.6297]
[1735298457285,18.01023623,190.5,190.32,17.99763623]
[1735298457286,2.6293,190.42,190.36,2.63]
[1735298457981,16.44203623,190.43,190.36,2.63]
[1735298458188,16.44203623,190.43,190.29,118.16933012]
[1735298458383,4.8202,190.42,190.29,118.16933012]
[1735298458588,1.6002,190.42,190.29,118.16933012]
[1735298458891,16.44203623,190.46,190.4,2.6294]
[1735298459193,13.22203623,190.46,190.33,3.22]
[1735298459488,13.22203623,190.46,190.35,13.22203623]
[1735298459684,16.44203623,190.46,190.41,2.6293]
[1735298459885,13.22203623,190.46,190.35,13.22203623]
[1735298460484,15.85073623,190.46,190.35,13.22203623]
[1735298461388,13.22203623,190.46,190.41,2.6293]
[1735298461995,13.22203623,190.46,190.42,2.6292]
[1735298462489,13.22203623,190.46,190.43,2.6291]
[1735298464686,2.6289,190.45,190.4,2.6295]
[1735298465491,13.22203623,190.46,190.42,2.6293]
[1735298466796,13.22203623,190.46,190.35,13.22203623]
[1735298466797,2.6289,190.45,190.35,13.22203623]
[1735298466996,2.6289,190.45,190.33,6.3918]
[1735298468591,13.22203623,190.46,190.33,6.3918]
[1735298468791,13.22203623,190.46,190.41,2.6293]
[1735298469093,13.22203623,190.46,190.35,13.22203623]
[1735298469295,2.6289,190.45,190.39,2.6296]
[1735298470298,8.48642898,190.43,190.39,2.6296]
[1735298470691,8.48642898,190.45,190.38,8.48642898]
[1735298471290,8.48642898,190.45,190.43,2.629]
[1735298472295,13.25813321,190.47,190.42,2.6293]
[1735298473201,42.14431475,190.47,190.42,2.6293]
[1735298473401,44.77291475,190.47,190.42,2.6293]
[1735298473606,42.14431475,190.47,190.42,2.6293]
[1735298473993,42.45917932,190.46,190.42,2.6293]
[1735298474600,42.45917932,190.46,190.37,2.6299]
[1735298474797,42.45917932,190.46,190.34,13.25813321]
[1735298475203,42.45917932,190.46,190.41,2.6294]
[1735298475905,7.28019999,190.44,190.41,2.6294]
[1735298476206,7.28019999,190.44,190.39,2.6297]
[1735298476599,21.60598155,190.42,190.39,2.6297]
[1735298476904,21.60598155,190.42,190.33,6.3918]
[1735298477803,7.29637862,190.4,190.33,6.3918]
[1735298478600,7.29637862,190.38,190.35,13.25813321]
[1735298479507,7.29637862,190.38,190.37,2.63]
[1735298479905,28.90236017,190.39,190.35,13.25813321]
[1735298480504,28.90236017,190.39,190.38,2.6298]
[1735298482108,21.60598155,190.39,190.38,2.6298]
[1735298483906,21.60598155,190.39,190.36,2.63]
[1735298484809,21.60598155,190.39,190.3,16.42173321]
[1735298485204,21.60598155,190.37,190.3,16.42173321]
[1735298485407,21.60598155,190.37,190.35,2.6302]
[1735298486412,7.32079552,190.36,190.35,2.6302]
[1735298487412,28.92677707,190.36,190.33,2.6304]
[1735298489406,28.92677707,190.36,190.29,104.94729389]
[1735298489602,28.92677707,190.36,190.34,2.6303]
[1735298490106,28.92677707,190.36,190.25,3.22]
[1735298490318,7.32079552,190.34,190.25,16.47813321]
[1735298490707,7.32079552,190.34,190.32,2.6305]
[1735298491107,28.92677707,190.34,190.25,16.47813321]
[1735298491308,28.92677707,190.34,190.33,2.6305]
[1735298491813,7.32079552,190.35,190.33,2.6305]
[1735298492713,28.92677707,190.36,190.28,13.25813321]
[1735298492907,28.92677707,190.36,190.34,2.6303]
[1735298493511,7.32079552,190.35,190.34,2.6303]
[1735298493811,7.32079552,190.35,190.3,2.6309]
[1735298494016,7.32079552,190.35,190.28,13.25813321]
[1735298494312,37.41896622,190.35,190.27,8.49218915]
[1735298495106,37.41896622,190.35,190.33,2.6305]
[1735298495408,37.41896622,190.35,190.29,8.49218915]
[1735298495409,28.92677707,190.35,190.29,8.49218915]
[1735298496111,28.92677707,190.35,190.34,2.6304]
[1735298496313,20.93883394,190.36,190.31,8.49218915]
[1735298496616,20.93883394,190.36,190.35,2.6302]
[1735298497409,57.61595082,190.38,190.31,8.49218915]
[1735298497410,7.32079552,190.38,190.31,8.49218915]
[1735298497612,7.32079552,190.38,190.36,2.63]
[1735298498215,7.32079552,190.38,190.3,3.22]
[1735298498412,15.81298467,190.39,190.35,2.6302]
[1735298499116,15.81298467,190.39,190.31,8.49218915]
[1735298499516,28.92677707,190.39,190.33,8.49218915]
[1735298500218,28.92677707,190.39,190.36,2.63]
[1735298500418,37.41896622,190.39,190.31,8.49218915]
[1735298500619,8.49218915,190.39,190.31,8.49218915]
[1735298501221,8.49218915,190.39,190.3,3.22]
[1735298501517,8.49218915,190.39,190.31,8.49218915]
[1735298501722,8.49218915,190.37,190.31,8.49218915]
[1735298502922,7.32079552,190.37,190.31,8.49218915]
[1735298503122,7.32079552,190.37,190.32,2.6305]
[1735298503323,7.32079552,190.37,190.31,8.49218915]
[1735298503521,15.81298467,190.39,190.31,8.49218915]
[1735298504021,15.81298467,190.39,190.35,2.6301]
[1735298504217,15.81298467,190.39,190.3,3.22]
[1735298504426,15.81298467,190.39,190.3,11.71218915]
[1735298504727,40.04866622,190.39,190.33,2.6305]
[1735298505625,8.49218915,190.37,190.33,2.6305]
[1735298506614,8.49218915,190.37,190.3,11.71218915]
[1735298506615,15.81298467,190.37,190.3,11.71218915]
[1735298506817,15.81298467,190.37,190.34,2.6303]
[1735298507824,15.81298467,190.37,190.3,11.71218915]
[1735298508522,15.81298467,190.37,190.35,2.6301]
[1735298511226,7.32079552,190.37,190.36,2.6301]
[1735298512818,7.32079552,190.4,190.35,2.6301]
[1735298513020,8.49218915,190.38,190.3,3.22]
[1735298513425,8.49218915,190.38,190.3,11.71218915]
[1735298513628,8.49218915,190.38,190.33,2.6304]
[1735298513829,7.32079552,190.37,190.3,11.71218915]
[1735298514931,42.55750553,190.37,190.3,11.71218915]
[1735298515229,42.55750553,190.37,190.35,2.6301]
[1735298515430,42.55750553,190.37,190.34,8.49218915]
[1735298516029,28.92677707,190.37,190.34,8.49218915]
[1735298516528,28.92677707,190.37,190.36,2.6301]
[1735298516933,7.32079552,190.38,190.37,2.63]
[1735298519532,28.92677707,190.39,190.37,2.63]
[1735298523631,7.32079552,190.39,190.37,2.63]
[1735298524023,7.32079552,190.39,190.38,2.6298]
[1735298524227,7.32079552,190.39,190.38,11.12198915]
[1735298525430,7.32079552,190.41,190.4,2.6295]
[1735298526437,28.92677707,190.42,190.41,2.6294]
[1735298527334,28.92677707,190.43,190.42,2.6293]
[1735298527633,28.92677707,190.43,190.42,11.12148915]
[1735298528432,28.92677707,190.45,190.43,2.6291]
[1735298529435,57.61595082,190.46,190.43,2.6291]
[1735298529436,7.32079552,190.46,190.43,2.6291]
[1735298529831,7.32079552,190.46,190.44,8.49218915]
[1735298530435,7.32079552,190.46,190.45,2.6289]
[1735298530639,21.60598155,190.47,190.44,8.49218915]
[1735298530640,7.32079552,190.47,190.44,8.49218915]
[1735298531341,7.32079552,190.47,190.46,2.6287]
[1735298531942,28.92677707,190.51,190.47,2.6285]
[1735298532839,8.49218915,190.5,190.45,2.6288]
[1735298534238,8.49218915,190.5,190.46,2.6287]
[1735298535543,8.49218915,190.5,190.47,2.6286]
[1735298535843,28.92677707,190.51,190.44,8.49218915]
[1735298536548,8.49218915,190.52,190.44,8.49218915]
[1735298536845,8.49218915,190.52,190.46,8.49218915]
[1735298537041,8.49218915,190.52,190.48,2.6283]
[1735298539750,8.49218915,190.52,190.49,2.6283]
[1735298542250,7.32079552,190.55,190.46,8.49218915]
[1735298542447,8.49218915,190.54,190.5,2.6281]
[1735298543246,8.49218915,190.54,190.46,8.49218915]
[1735298543247,10.59349552,190.56,190.51,2.628]
[1735298543448,19.08568467,190.56,190.51,2.628]
[1735298544448,11.76488915,190.56,190.51,2.628]
[1735298547057,3.2727,190.56,190.5,8.49218915]
[1735298547254,3.2727,190.56,190.52,8.49218915]
[1735298547458,3.2727,190.56,190.54,2.6276]
[1735298548559,11.11898915,190.6,190.54,2.6276]
[1735298548962,11.11898915,190.6,190.55,2.6274]
[1735298550261,11.11898915,190.6,190.56,2.6273]
[1735298550657,10.44669552,190.61,190.54,8.49218915]
[1735298550862,8.49218915,190.6,190.51,3.22]
[1735298551056,8.49218915,190.6,190.52,8.49218915]
[1735298551257,11.11898915,190.6,190.52,8.49218915]
[1735298551457,11.11898915,190.6,190.54,2.6276]
[1735298551665,11.11898915,190.6,190.52,8.49218915]
[1735298552070,8.49218915,190.58,190.53,2.6277]
[1735298554065,28.92677707,190.58,190.54,8.49218915]
[1735298555167,11.61808915,190.61,190.54,8.49218915]
[1735298555368,11.61808915,190.61,190.56,2.6273]
[1735298555662,11.61808915,190.61,190.54,8.49218915]
[1735298556067,11.61808915,190.61,190.57,2.6271]
[1735298557667,18.93888467,190.61,190.57,2.6271]
[1735298557971,18.93888467,190.61,190.54,8.49218915]
[1735298558166,18.93888467,190.61,190.58,2.627]
[1735298559471,18.93888467,190.61,190.59,2.6269]
[1735298559670,11.61808915,190.61,190.59,2.6269]
[1735298560372,7.32079552,190.6,190.59,2.6269]
[1735298562072,42.4988905,190.6,190.59,2.6269]
[1735298562978,35.17809498,190.6,190.59,2.6269]
[1735298563876,33.2240707,190.61,190.59,2.6269]
[1735298564063,33.2240707,190.61,190.56,8.49218915]
[1735298564268,24.73188155,190.61,190.6,2.6268]
[1735298564473,24.73188155,190.61,190.5,3.22]
[1735298564667,24.73188155,190.61,190.55,8.49218915]
[1735298564868,24.73188155,190.61,190.59,2.6269]
[1735298564869,45.60280268,190.61,190.59,2.6269]
[1735298566375,35.18763218,190.6,190.59,2.6269]
[1735298567076,7.28999625,190.6,190.59,2.6269]
[1735298569076,35.19279696,190.6,190.59,2.6269]
[1735298569977,21.60598155,190.6,190.59,2.6269]
[1735298570974,71.20276623,190.6,190.59,8.49218915]
[1735298571167,71.20276623,190.6,190.59,11.11908915]
[1735298571980,29.18878242,190.62,190.6,2.6267]
[1735298573579,29.18878242,190.62,190.61,2.6266]
[1735298573976,29.18878242,190.62,190.61,11.11878915]
[1735298575184,7.2971956,190.65,190.64,2.6262]
[1735298576275,7.2971956,190.65,190.63,8.49218915]
[1735298576276,7.2971956,190.67,190.65,2.6261]
[1735298579485,7.2971956,190.67,190.6,3.2]
[1735298579784,7.2971956,190.67,190.61,8.49218915]
[1735298579983,7.2971956,190.67,190.63,8.49218915]
[1735298580676,29.18878242,190.66,190.62,2.6264]
[1735298581581,7.2971956,190.64,190.62,2.6264]
[1735298582786,29.18878242,190.64,190.63,2.6264]
[1735298582983,29.18878242,190.64,190.63,11.11858915]
[1735298583687,7.2971956,190.65,190.64,2.6262]
[1735298584383,29.18878242,190.66,190.64,2.6262]
[1735298584585,29.18878242,190.66,190.65,2.6261]
[1735298585087,7.2971956,190.66,190.65,11.11828915]
[1735298585685,7.2971956,190.67,190.65,11.11828915]
[1735298586086,7.2971956,190.67,190.65,2.6261]
[1735298587990,29.18878242,190.67,190.65,2.6261]
[1735298589192,29.18878242,190.67,190.63,8.49218915]
[1735298589395,29.18878242,190.67,190.66,2.626]
[1735298589591,29.18878242,190.67,190.63,8.49218915]
[1735298590194,7.2971956,190.67,190.63,8.49218915]
[1735298590496,7.2971956,190.67,190.65,2.626]
[1735298591695,7.2971956,190.67,190.66,2.626]
[1735298592289,7.2971956,190.67,190.65,8.49218915]
[1735298592495,7.2971956,190.67,190.63,8.49218915]
[1735298592890,8.49218915,190.66,190.59,8.49218915]
[1735298593192,13.24768915,190.66,190.59,8.49218915]
[1735298593391,4.7555,190.66,190.62,2.6264]
[1735298593591,4.7555,190.66,190.61,8.49218915]
[1735298593893,7.3815,190.66,190.6,2.6267]
[1735298594195,29.18878242,190.64,190.6,2.6267]
[1735298595096,21.89158682,190.63,190.6,2.6267]
[1735298595297,29.18878242,190.63,190.6,2.6267]
[1735298596201,29.18878242,190.63,190.59,8.49218915]
[1735298596796,29.18878242,190.63,190.61,2.6266]
[1735298596797,7.2971956,190.63,190.61,2.6266]
[1735298598400,7.2971956,190.63,190.59,8.49218915]
[1735298598603,7.2971956,190.63,190.62,2.6265]
[1735298599204,29.18878242,190.64,190.61,8.49218915]
[1735298599401,29.18878242,190.64,190.63,11.11858915]
[1735298599699,29.18878242,190.64,190.63,14.31858915]
[1735298600398,7.2971956,190.67,190.65,2.626]
[1735298601201,29.18878242,190.68,190.65,2.626]
[1735298601698,29.18878242,190.68,190.65,11.11818915]
[1735298602297,7.2971956,190.67,190.65,11.11818915]
[1735298604094,7.2971956,190.67,190.66,2.626]
[1735298604897,21.89158682,190.68,190.66,2.626]
[1735298604898,29.18878242,190.68,190.66,2.626]
[1735298606793,29.18878242,190.68,190.67,11.11798915]
[1735298608404,29.18878242,190.69,190.68,2.6257]
[1735298608793,29.18878242,190.69,190.68,5.8257]
[1735298609900,7.2971956,190.7,190.69,2.6255]
[1735298610099,7.2971956,190.7,190.69,11.11768915]
[1735298611110,7.2971956,190.71,190.7,2.6254]
[1735298612198,29.18878242,190.72,190.71,2.6253]
[1735298613514,7.2971956,190.72,190.71,2.6253]
[1735298614313,29.18878242,190.72,190.71,2.6253]
[1735298615115,29.18878242,190.73,190.71,2.6253]
[1735298616309,29.18878242,190.73,190.72,2.6251]
[1735298617111,32.43118242,190.75,190.72,2.6251]
[1735298617811,32.43118242,190.75,190.73,2.625]
[1735298618320,29.18878242,190.75,190.73,8.49218915]
[1735298619318,29.18878242,190.78,190.75,2.6247]
[1735298619520,29.18878242,190.78,190.75,11.11688915]
[1735298619922,29.18878242,190.78,190.76,2.6246]